bitfinex-derivatives/quotes_BTCF0:USTF0_20241015
["timestamp","ask_amount","ask_price","bid_price","bid_amount"]
[1729026284691,0.08289079,66586.0,66585.0,0.621895]
[1729026284896,0.03678424,66586.0,66585.0,0.621895]
[1729026285700,0.03678424,66586.0,66585.0,0.623895]
[1729026286003,0.13432486,66588.0,66587.0,0.075093]
[1729026286205,0.13432486,66588.0,66587.0,0.245093]
[1729026286616,0.08288631,66588.0,66587.0,0.17]
[1729026286901,0.04610406,66588.0,66587.0,0.245093]
[1729026287106,0.13432486,66588.0,66587.0,0.245093]
[1729026287307,0.08288631,66588.0,66587.0,0.245093]
[1729026287493,0.07509,66590.0,66588.0,0.075092]
[1729026287700,0.08288867,66589.0,66588.0,0.075092]
[1729026288296,0.07509,66590.0,66587.0,0.186]
[1729026288503,0.07509,66590.0,66589.0,0.075091]
[1729026289706,0.07509,66590.0,66589.0,0.080091]
[1729026291002,0.07509,66590.0,66589.0,0.087091]
[1729026291403,0.075087,66592.0,66591.0,0.22549]
[1729026291611,0.075087,66592.0,66591.0,0.75629]
[1729026292003,0.075087,66592.0,66591.0,0.831378]
[1729026292204,0.075087,66592.0,66591.0,0.470578]
[1729026292401,0.075087,66592.0,66591.0,0.831378]
[1729026292813,0.075087,66592.0,66591.0,0.834378]
[1729026293709,0.3608,66602.0,66591.0,0.838378]
[1729026294010,0.075085,66595.0,66594.0,0.075084]
[1729026295201,0.00975024,66601.0,66591.0,0.59329]
[1729026295507,0.075084,66595.0,66594.0,0.172]
[1729026295712,0.08288941,66595.0,66594.0,0.247085]
[1729026296216,0.08288939,66595.0,66594.0,0.247085]
[1729026297110,0.08288939,66595.0,66594.0,0.245085]
[1729026297300,0.15797339,66595.0,66594.0,0.245085]
[1729026297507,0.15797339,66595.0,66594.0,0.247085]
[1729026297710,0.08288939,66595.0,66594.0,0.247085]
[1729026298510,0.08288939,66595.0,66594.0,0.245085]
[1729026298708,0.08288939,66595.0,66594.0,0.247085]
[1729026300205,0.08288471,66595.0,66594.0,0.247085]
[1729026300409,0.075094,66586.0,66584.0,0.10513]
[1729026300608,0.36048471,66585.0,66576.0,0.3608]
[1729026300816,0.17,66577.0,66563.0,0.37583]
[1729026301009,0.17,66568.0,66563.0,0.36156]
[1729026301205,0.1343889,66566.0,66563.0,0.36156]
[1729026301509,0.08288471,66566.0,66565.0,0.24737127]
[1729026301816,0.03678154,66566.0,66565.0,0.24737127]
[1729026302012,0.03679739,66566.0,66565.0,0.17225327]
[1729026302310,0.03679739,66566.0,66565.0,0.26037127]
[1729026302515,0.1343889,66577.0,66566.0,0.075117]
[1729026302724,0.1343889,66580.0,66576.0,0.5308]
[1729026302908,0.13410745,66581.0,66580.0,0.075101]
[1729026303129,0.04611645,66581.0,66580.0,0.245101]
[1729026303311,0.00962587,66586.0,66582.0,0.075099]
[1729026303522,0.1113534,66591.0,66585.0,0.17]
[1729026303727,0.0022534,66591.0,66590.0,0.24509]
[1729026304920,0.0022534,66591.0,66590.0,0.17]
[1729026305316,0.0052534,66591.0,66590.0,0.60589]
[1729026305822,0.0022534,66591.0,66590.0,0.60589]
[1729026306017,0.0022534,66591.0,66590.0,0.61289]
[1729026307427,0.0022534,66591.0,66590.0,0.60889]
[1729026307727,0.0022534,66591.0,66590.0,0.61289]
[1729026308226,0.00944118,66593.0,66590.0,0.61289]
[1729026308419,0.2797,66609.0,66591.0,0.3608]
[1729026308610,0.2797,66609.0,66598.0,0.24508]
[1729026308611,0.075077,66601.0,66598.0,0.24508]
[1729026309618,0.075077,66601.0,66598.0,0.17]
[1729026310325,0.075077,66601.0,66595.0,0.075084]
[1729026310726,0.075078,66601.0,66595.0,0.075084]
[1729026310926,0.075078,66600.0,66595.0,0.075084]
[1729026311418,0.075078,66600.0,66596.0,0.075083]
[1729026312023,0.075078,66600.0,66598.0,0.17]
[1729026312321,0.43061888,66606.0,66599.0,0.3608]
[1729026312518,0.075076,66602.0,66599.0,0.3608]
[1729026313525,0.00969888,66606.0,66599.0,0.3608]
[1729026313823,0.075061,66616.0,66605.0,0.5308]
[1729026314122,0.011722,66614.0,66613.0,0.17]
[1729026314827,0.011722,66614.0,66613.0,0.245064]
[1729026314828,0.0022526,66614.0,66613.0,0.245064]
[1729026315025,0.3089,66625.0,66613.0,0.34]
[1729026315214,0.3089,66625.0,66624.0,0.17]
[1729026315215,0.1012,66625.0,66624.0,0.17]
[1729026315416,0.11099364,66625.0,66624.0,0.17]
[1729026315726,0.00979364,66625.0,66624.0,0.17]
[1729026316028,0.075048,66627.0,66624.0,0.17]
[1729026316522,0.075044,66631.0,66625.0,0.075049]
[1729026316821,0.075042,66632.0,66631.0,0.17]
[1729026317225,0.22100161,66634.0,66627.0,0.17]
[1729026317525,0.075047,66628.0,66627.0,0.17]
[1729026318324,0.075047,66628.0,66627.0,0.162]
[1729026318522,0.12112942,66628.0,66627.0,0.162]
[1729026318726,0.15789441,66628.0,66627.0,0.162]
[1729026318921,0.15789441,66628.0,66627.0,0.176]
[1729026319230,0.15789441,66628.0,66627.0,0.28106]
[1729026319426,0.15789441,66628.0,66627.0,0.29406]
[1729026319821,0.08284741,66628.0,66627.0,0.369108]
[1729026320126,0.08284741,66628.0,66627.0,0.729908]
[1729026320330,0.08284741,66632.0,66627.0,0.65486]
[1729026320631,0.08284741,66631.0,66630.0,0.075045]
[1729026321130,0.075034,66640.0,66633.0,0.075041]
[1729026321319,0.1076,66647.0,66635.0,0.3608]
[1729026321515,0.1076,66647.0,66644.0,0.17]
[1729026321720,0.435828,66645.0,66644.0,0.17]
[1729026322230,0.57249957,66645.0,66644.0,0.17]
[1729026322423,0.68230821,66645.0,66644.0,0.17]
[1729026322736,0.58226704,66645.0,66644.0,0.17]
[1729026323426,0.74580064,66645.0,66644.0,0.17]
[1729026323731,0.74580064,66645.0,66644.0,0.184]
[1729026324426,0.74580064,66645.0,66644.0,0.196]
[1729026324427,0.52843003,66645.0,66644.0,0.196]
[1729026324928,0.16763003,66645.0,66644.0,0.196]
[1729026325327,0.23340728,66645.0,66644.0,0.196]
[1729026325522,0.08479643,66645.0,66644.0,0.196]
[1729026326523,0.00976843,66645.0,66644.0,0.196]
[1729026326729,0.0772734,66650.0,66645.0,0.075027]
[1729026326921,0.0772734,66650.0,66649.0,0.17]
[1729026327622,0.0870387,66650.0,66649.0,0.17]
[1729026328331,0.0120167,66650.0,66649.0,0.17]
[1729026328727,0.0120167,66650.0,66649.0,0.245023]
[1729026328928,0.0120167,66650.0,66649.0,0.259023]
[1729026330029,0.0097653,66650.0,66649.0,0.259023]
[1729026330235,0.075012,66660.0,66650.0,0.075022]
[1729026330437,0.075012,66660.0,66659.0,0.17]
[1729026330735,0.0097382,66660.0,66659.0,0.17]
[1729026330935,0.00751744,66672.0,66659.0,0.17]
[1729026331128,0.075002,66668.0,66667.0,0.5308]
[1729026331433,0.00751744,66672.0,66667.0,0.5308]
[1729026331434,0.074998,66671.0,66667.0,0.5308]
[1729026331636,0.074998,66671.0,66670.0,0.17]
[1729026332425,0.075002,66668.0,66667.0,0.5448]
[1729026333530,0.32779704,66668.0,66667.0,0.014]
[1729026334035,0.38160995,66668.0,66667.0,0.014]
[1729026334948,0.38160995,66668.0,66667.0,0.028]
[1729026335232,0.21160995,66668.0,66667.0,0.028]
[1729026335434,0.15780288,66668.0,66667.0,0.028]
[1729026335638,0.15780288,66668.0,66667.0,0.13299]
[1729026336836,0.32780288,66668.0,66667.0,0.13299]
[1729026337242,0.38161579,66668.0,66667.0,0.13299]
[1729026338535,0.38161579,66668.0,66659.0,0.3608]
[1729026338536,1.46592451,66668.0,66659.0,0.3608]
[1729026338746,0.13661379,66667.0,66663.0,0.17]
[1729026338933,0.08280088,66666.0,66663.0,0.17]
[1729026339134,0.08280088,66666.0,66663.0,0.245006]
[1729026339335,0.16315849,66664.0,66663.0,0.245006]
[1729026339536,0.24595937,66664.0,66663.0,0.245006]
[1729026340031,0.24595937,66664.0,66663.0,0.17]
[1729026340229,0.27490902,66664.0,66663.0,0.17]
[1729026340436,0.15780731,66664.0,66663.0,0.172]
[1729026340744,0.075006,66664.0,66663.0,0.172]
[1729026341043,0.089006,66664.0,66663.0,0.172]
[1729026341943,0.089006,66664.0,66663.0,0.002]
[1729026342544,0.099006,66664.0,66663.0,0.001]
[1729026342945,0.1084189,66664.0,66663.0,0.001]
[1729026344439,0.074997,66673.0,66663.0,1.31954]
[1729026344632,0.074996,66673.0,66672.0,0.17]
[1729026344832,0.074998,66671.0,66670.0,0.3608]
[1729026346746,0.084998,66671.0,66670.0,0.3618]
[1729026347745,0.084998,66671.0,66670.0,0.3628]
[1729026348844,0.084998,66671.0,66670.0,0.002]
[1729026349048,0.084998,66671.0,66668.0,0.17]
[1729026349049,0.084998,66671.0,66668.0,0.169]
[1729026350651,0.091998,66671.0,66668.0,0.17]
[1729026351841,0.075001,66669.0,66668.0,0.001]
[1729026352252,0.075001,66669.0,66668.0,0.002]
[1729026352846,0.075001,66669.0,66668.0,0.001]
[1729026353051,0.077001,66669.0,66668.0,0.002]
[1729026353442,0.11374579,66669.0,66668.0,0.002]
[1729026353944,0.085001,66669.0,66668.0,0.002]
[1729026354348,0.12174579,66669.0,66668.0,0.002]
[1729026355956,0.52860244,66669.0,66668.0,0.002]
[1729026356149,0.49961783,66669.0,66668.0,0.002]
[1729026356343,0.58242294,66669.0,66668.0,0.002]
[1729026357052,0.51696188,66669.0,66654.0,0.3007]
[1729026357358,0.075016,66655.0,66654.0,0.3007]
[1729026357547,0.15782111,66655.0,66654.0,0.3007]
[1729026358255,0.15782111,66655.0,66651.0,0.00225034]
[1729026358256,0.07502,66652.0,66651.0,0.00225034]
[1729026358643,0.20961123,66652.0,66651.0,0.00225034]
[1729026358856,0.15782511,66652.0,66651.0,0.00225034]
[1729026359554,0.08480511,66652.0,66651.0,0.07827134]
[1729026359857,0.08480903,66652.0,66651.0,0.07827134]
[1729026360053,0.08480903,66652.0,66651.0,0.24827134]
[1729026360746,0.09480903,66652.0,66651.0,0.07927134]
[1729026360947,0.09480903,66652.0,66651.0,0.84927134]
[1729026361150,0.075007,66664.0,66660.0,0.075011]
[1729026361348,0.075007,66664.0,66663.0,0.17]
[1729026361554,0.05382404,66673.0,66663.0,0.17]
[1729026361750,0.05382404,66673.0,66661.0,0.4623]
[1729026361751,0.074998,66671.0,66670.0,0.17]
[1729026362753,0.05382404,66673.0,66670.0,0.244999]
[1729026362949,0.002,66671.0,66670.0,0.245999]
[1729026363460,0.002,66671.0,66670.0,0.171]
[1729026364051,0.076998,66671.0,66670.0,0.171]
[1729026364250,0.076998,66671.0,66670.0,0.172]
[1729026364450,0.076998,66671.0,66670.0,0.17]
[1729026365061,0.074998,66671.0,66670.0,0.177]
[1729026365755,0.074998,66671.0,66670.0,0.001]
[1729026365950,0.074998,66671.0,66670.0,0.002]
[1729026369055,0.11174233,66671.0,66670.0,0.002]
[1729026370862,0.11174233,66671.0,66670.0,0.076999]
[1729026370863,0.08279748,66671.0,66670.0,0.076999]
[1729026371057,0.12884625,66671.0,66670.0,0.002]
[1729026371261,0.0827931,66671.0,66670.0,0.002]
[1729026371470,0.13660585,66671.0,66670.0,0.00163603]
[1729026371849,0.21160385,66671.0,66670.0,0.00163603]
[1729026372159,0.1577911,66671.0,66670.0,0.00163603]
[1729026372548,0.21160385,66671.0,66670.0,0.00163603]
[1729026374866,0.21160385,66671.0,66670.0,0.00134325]
[1729026376259,1.1327531,66671.0,66661.0,0.3608]
[1729026376466,0.245008,66662.0,66661.0,0.3608]
[1729026376664,0.21161385,66662.0,66661.0,0.3608]
[1729026377262,0.21161385,66662.0,66661.0,0.5308]
[1729026377466,0.21161385,66662.0,66661.0,0.001]
[1729026378078,0.07501,66661.0,66660.0,0.17]
[1729026378368,0.21161585,66661.0,66660.0,0.17]
[1729026378762,0.11175089,66661.0,66660.0,0.17]
[1729026379864,0.11175089,66661.0,66660.0,0.162]
[1729026380471,0.11275089,66661.0,66660.0,0.163]
[1729026380870,0.11475089,66661.0,66660.0,0.163]
[1729026382164,0.03974089,66661.0,66660.0,0.598811]
[1729026382669,0.003,66661.0,66660.0,0.598811]
[1729026385778,0.04905331,66661.0,66660.0,1.648851]
[1729026385973,0.003,66661.0,66660.0,1.648851]
[1729026386377,0.03974176,66661.0,66660.0,1.648851]
[1729026386876,0.003,66661.0,66660.0,1.648851]
[1729026387374,0.08579488,66661.0,66660.0,1.648851]
[1729026387976,0.03974176,66661.0,66660.0,1.648851]
[1729026388370,0.003,66661.0,66660.0,1.648851]
[1729026389079,0.08579447,66661.0,66660.0,1.648851]
[1729026389270,0.08579453,66661.0,66660.0,1.648851]
[1729026389475,0.13769303,66661.0,66660.0,1.648851]
[1729026389679,0.08579453,66661.0,66660.0,1.648851]
[1729026389979,0.22048756,66661.0,66660.0,1.648851]
[1729026390179,0.08579453,66661.0,66660.0,1.648851]
[1729026390372,0.22048756,66661.0,66660.0,1.648851]
[1729026390678,0.16080453,66661.0,66660.0,1.048851]
[1729026390978,0.08579453,66661.0,66660.0,1.048851]
[1729026391579,0.08579453,66661.0,66660.0,0.598811]
[1729026391771,0.16080453,66661.0,66660.0,1.048851]
[1729026392280,0.16080453,66661.0,66660.0,0.598811]
[1729026392869,0.29565713,66661.0,66660.0,0.598811]
[1729026393480,0.22064713,66661.0,66660.0,1.048851]
[1729026393668,0.22064713,66661.0,66660.0,1.648851]
[1729026393873,0.003,66661.0,66660.0,1.648851]
[1729026394678,0.07801,66661.0,66660.0,0.001]
[1729026394880,0.07801,66661.0,66657.0,0.30035]
[1729026394881,0.075013,66658.0,66657.0,0.30035]
[1729026395186,0.605813,66658.0,66651.0,0.00225034]
[1729026395373,0.60582,66652.0,66651.0,0.00225034]
[1729026395579,0.60582,66652.0,66635.0,0.30038]
[1729026395885,0.245031,66642.0,66636.0,0.17]
[1729026396078,0.25258506,66642.0,66636.0,0.17]
[1729026396274,0.08258506,66642.0,66636.0,0.17]
[1729026397078,0.08258506,66642.0,66641.0,0.3698]
[1729026397480,0.08258506,66642.0,66641.0,0.3828]
[1729026399369,0.09245364,66642.0,66641.0,0.3828]
[1729026399578,0.09245364,66642.0,66641.0,0.022]
[1729026400078,0.09245364,66642.0,66635.0,0.30038]
[1729026400079,0.075038,66636.0,66635.0,0.30038]
[1729026400272,0.075038,66636.0,66635.0,0.1018425]
[1729026400273,0.605838,66636.0,66635.0,0.1018425]
[1729026400472,0.075047,66628.0,66627.0,0.01503]
[1729026400699,0.3608,66628.0,66627.0,0.01503]
[1729026400881,0.07504,66634.0,66631.0,0.3004]
[1729026401182,0.07504,66634.0,66633.0,0.17]
[1729026401779,0.075036,66638.0,66635.0,0.014]
[1729026401973,0.075036,66638.0,66637.0,0.17]
[1729026402380,0.075036,66638.0,66635.0,0.026]
[1729026402381,0.075038,66636.0,66635.0,0.026]
[1729026402778,0.27245406,66642.0,66635.0,0.026]
[1729026402779,0.0173722,66642.0,66635.0,0.026]
[1729026402982,0.075036,66638.0,66635.0,0.026]
[1729026403184,0.075036,66638.0,66635.0,0.012]
[1729026403581,0.075036,66638.0,66634.0,0.24504]
[1729026403886,0.076036,66638.0,66634.0,0.24504]
[1729026404082,0.076036,66638.0,66635.0,0.001]
[1729026404584,0.076036,66638.0,66634.0,0.24504]
[1729026404782,0.001,66638.0,66634.0,0.24704]
[1729026404981,0.075037,66637.0,66634.0,0.24704]
[1729026405198,0.075037,66637.0,66634.0,0.25404]
[1729026405391,0.075039,66635.0,66634.0,0.179]
[1729026406288,0.075039,66635.0,66634.0,0.177]
[1729026406590,0.075039,66635.0,66634.0,0.17]
[1729026406788,0.075039,66635.0,66634.0,0.178]
[1729026406992,0.075039,66635.0,66634.0,0.181]
[1729026408088,0.075039,66635.0,66634.0,0.173]
[1729026408283,0.076039,66635.0,66634.0,0.18]
[1729026410390,0.08556401,66635.0,66634.0,0.18]
[1729026410886,0.25556401,66635.0,66634.0,0.01]
[1729026411290,1.30576401,66635.0,66634.0,0.01]
[1729026411494,0.075042,66632.0,66631.0,0.3004]
[1729026411689,0.435842,66632.0,66631.0,0.3004]
[1729026411891,1.486082,66632.0,66631.0,0.2924]
[1729026412282,0.435842,66632.0,66631.0,0.2924]
[1729026412593,0.886082,66632.0,66631.0,0.2924]
[1729026412792,0.887082,66632.0,66631.0,0.3024]
[1729026412989,0.888082,66632.0,66631.0,0.3084]
[1729026413292,0.437842,66632.0,66631.0,0.3084]
[1729026415090,0.077042,66632.0,66631.0,0.3084]
[1729026415296,0.437842,66632.0,66631.0,0.3084]
[1729026415794,0.077042,66632.0,66631.0,0.3084]
[1729026427104,0.077042,66632.0,66631.0,0.3004]
[1729026429101,0.002,66632.0,66631.0,0.4704]
[1729026429297,0.36305143,66650.0,66631.0,1.0704]
[1729026429495,0.075023,66649.0,66639.0,0.17]
[1729026429693,0.435833,66640.0,66639.0,0.17]
[1729026431006,0.438833,66640.0,66639.0,0.17]
[1729026431206,0.47559165,66640.0,66639.0,0.17]
[1729026431704,0.40155865,66640.0,66633.0,0.0903]
[1729026432007,0.07504,66634.0,66633.0,0.0903]
[1729026432207,0.07504,66634.0,66633.0,0.335341]
[1729026432208,0.03675865,66634.0,66633.0,0.335341]
[1729026432410,0.03675982,66639.0,66635.0,0.075038]
[1729026432612,0.03675965,66638.0,66637.0,0.075037]
[1729026432808,0.03675965,66638.0,66637.0,0.17]
[1729026433507,0.03675965,66638.0,66637.0,0.245037]
[1729026434309,0.03675965,66638.0,66637.0,0.17]
[1729026434615,0.11179565,66638.0,66637.0,0.17]
[1729026435205,0.11179565,66638.0,66637.0,0.174]
[1729026435510,0.11179409,66638.0,66637.0,0.174]
[1729026436312,0.11179409,66638.0,66637.0,0.249037]
[1729026436510,0.075036,66638.0,66637.0,0.249037]
[1729026437013,0.075036,66638.0,66637.0,0.174]
[1729026437513,0.11179413,66638.0,66637.0,0.174]
[1729026437908,0.03675878,66638.0,66637.0,0.249037]
[1729026438220,0.075035,66639.0,66637.0,0.249037]
[1729026438609,0.075036,66638.0,66637.0,0.174]
[1729026439106,0.44551557,66638.0,66637.0,0.004]
[1729026439311,0.075041,66633.0,66632.0,0.0934]
[1729026439718,0.075042,66632.0,66631.0,0.2844]
[1729026439914,0.435842,66632.0,66631.0,0.26539009]
[1729026440219,0.435842,66632.0,66621.0,0.00225119]
[1729026440220,0.075054,66622.0,66621.0,0.00225119]
[1729026440422,0.245054,66622.0,66621.0,0.00225119]
[1729026441808,1.295374,66622.0,66621.0,0.00225119]
[1729026442013,0.07506,66616.0,66615.0,0.26039]
[1729026442213,0.60586,66616.0,66615.0,0.26039]
[1729026442409,0.60586,66616.0,66615.0,0.25239]
[1729026443122,0.43586,66616.0,66615.0,0.25239]
[1729026443320,0.43586,66616.0,66615.0,0.334451]
[1729026443321,0.001,66616.0,66615.0,0.334451]
[1729026443619,0.001,66616.0,66615.0,0.25939]
[1729026444815,0.01059109,66616.0,66615.0,0.25939]
[1729026445121,0.001,66616.0,66615.0,0.25939]
[1729026445517,0.07606,66616.0,66615.0,0.26439]
[1729026445919,0.24606,66616.0,66615.0,0.26439]
[1729026446220,1.33319721,66616.0,66615.0,0.26439]
[1729026446621,1.50319721,66616.0,66615.0,0.26439]
[1729026446815,1.50319721,66616.0,66601.0,0.00225203]
[1729026446816,1.33319721,66616.0,66601.0,0.00225203]
[1729026447117,0.075076,66602.0,66601.0,0.00225203]
[1729026447914,0.08277563,66602.0,66601.0,0.00225203]
[1729026448219,0.075076,66602.0,66601.0,0.00225203]
[1729026448423,0.075076,66602.0,66601.0,0.01825203]
[1729026449010,0.078076,66602.0,66601.0,0.00925203]
[1729026449213,0.078076,66602.0,66601.0,0.00425203]
[1729026450015,0.094642,66602.0,66601.0,0.00325203]
[1729026451316,0.103642,66602.0,66601.0,0.00425203]
[1729026451523,0.028566,66602.0,66601.0,0.07932903]
[1729026451926,0.028566,66602.0,66601.0,0.00425203]
[1729026451927,0.103642,66602.0,66601.0,0.00425203]
[1729026455229,0.273642,66602.0,66601.0,0.00425203]
[1729026455428,0.103642,66602.0,66601.0,0.00425203]
[1729026456340,0.103642,66602.0,66601.0,0.24932903]
[1729026456341,0.028566,66602.0,66601.0,0.24932903]
[1729026456842,0.3608,66610.0,66608.0,0.075069]
[1729026457029,0.3608,66610.0,66608.0,0.245069]
[1729026457420,0.00949321,66610.0,66609.0,0.075068]
[1729026457735,0.3608,66621.0,66609.0,0.075068]
[1729026457736,0.075064,66613.0,66609.0,0.075068]
[1729026457934,0.014,66610.0,66609.0,0.070068]
[1729026458527,0.014,66610.0,66609.0,0.082078]
[1729026458731,0.028,66610.0,66609.0,0.083078]
[1729026459322,0.014,66610.0,66609.0,0.083078]
[1729026459632,0.075064,66613.0,66609.0,0.082078]
[1729026459929,0.005,66610.0,66609.0,0.082078]
[1729026461125,0.075065,66612.0,66609.0,0.082078]
[1729026461322,0.075065,66612.0,66609.0,0.179078]
[1729026461924,0.075065,66612.0,66611.0,0.3608]
[1729026462936,0.00947295,66613.0,66611.0,0.5308]
[1729026463134,0.07506,66617.0,66612.0,0.0979]
[1729026463324,0.07506,66617.0,66614.0,0.17]
[1729026464938,0.08006,66617.0,66614.0,0.171]
[1729026465133,0.08981535,66617.0,66614.0,0.171]
[1729026465528,0.09081535,66617.0,66614.0,0.171]
[1729026465835,0.09081535,66617.0,66614.0,0.001]
[1729026466134,0.09381535,66617.0,66614.0,0.001]
[1729026466639,0.01575535,66617.0,66614.0,0.001]
[1729026466827,0.075061,66615.0,66614.0,0.001]
[1729026467633,0.11183323,66615.0,66614.0,0.001]
[1729026468243,0.081061,66615.0,66614.0,0.001]
[1729026469643,0.084061,66615.0,66614.0,0.001]
[1729026473038,0.084061,66615.0,66613.0,0.13143]
[1729026473241,0.084061,66615.0,66613.0,0.12443]
[1729026474439,0.009,66615.0,66614.0,0.075063]
[1729026474830,0.006,66615.0,66614.0,0.075063]
[1729026475041,0.008,66615.0,66614.0,0.075063]
[1729026475632,0.006,66615.0,66614.0,0.075063]
[1729026475832,0.00225203,66630.0,66622.0,0.075054]
[1729026476037,0.00225203,66630.0,66628.0,0.075046]
[1729026476237,0.00225203,66630.0,66629.0,0.1921]
[1729026476439,0.03901578,66630.0,66629.0,0.1921]
[1729026476645,0.04882962,66630.0,66629.0,0.267146]
[1729026476851,0.12387462,66630.0,66629.0,0.1921]
[1729026477043,0.12387545,66630.0,66629.0,0.0982]
[1729026477545,0.12687545,66630.0,66629.0,0.0982]
[1729026478339,0.12687545,66630.0,66629.0,0.0992]
[1729026478538,0.17395865,66630.0,66629.0,0.001]
[1729026479942,0.17895865,66630.0,66629.0,0.002]
[1729026480940,0.17896737,66630.0,66629.0,0.002]
[1729026481537,0.53976737,66630.0,66629.0,0.002]
[1729026482139,0.0578352,66630.0,66629.0,0.002]
[1729026482442,0.13524273,66635.0,66629.0,0.692046]
[1729026482649,0.03676329,66634.0,66633.0,0.075041]
[1729026482864,0.13440273,66641.0,66633.0,0.3608]
[1729026483040,0.00946284,66641.0,66640.0,0.075033]
[1729026483241,0.075031,66643.0,66636.0,0.075037]
[1729026483441,0.00763428,66642.0,66636.0,0.075037]
[1729026484047,0.00763428,66642.0,66632.0,0.3608]
[1729026484243,0.00763428,66642.0,66641.0,0.075032]
[1729026484440,0.3608,66644.0,66642.0,0.075031]
[1729026484642,0.00760498,66644.0,66643.0,0.17093]
[1729026484837,0.00225131,66647.0,66643.0,0.17093]
[1729026484838,0.00225131,66647.0,66643.0,0.0959]
[1729026485041,0.00225131,66647.0,66646.0,0.435827]
[1729026486145,0.00225131,66647.0,66645.0,0.0945]
[1729026486345,0.08485243,66649.0,66645.0,0.0945]
[1729026486648,0.08485243,66649.0,66646.0,0.005]
[1729026487842,0.075025,66648.0,66646.0,0.005]
[1729026488043,0.075025,66648.0,66645.0,0.169528]
[1729026488339,0.075025,66648.0,66645.0,0.170528]
[1729026488739,0.075025,66648.0,66645.0,0.162528]
[1729026488945,0.075025,66648.0,66645.0,0.161528]
[1729026489140,0.00982943,66649.0,66645.0,0.0865]
[1729026489353,0.075027,66646.0,66645.0,0.0865]
[1729026489550,0.075016,66656.0,66645.0,0.522327]
[1729026489747,0.075024,66648.0,66645.0,0.522327]
[1729026489953,0.076024,66648.0,66645.0,0.522327]
[1729026490151,0.001,66648.0,66645.0,0.522327]
[1729026490348,0.001,66648.0,66645.0,0.4473]
[1729026490661,0.075027,66646.0,66645.0,0.4473]
[1729026490953,0.075027,66646.0,66644.0,0.0914]
[1729026491154,0.07503,66643.0,66642.0,0.2899]
[1729026491362,0.07504,66634.0,66633.0,0.098]
[1729026491741,0.07504,66634.0,66629.0,0.26739]
[1729026491742,0.075045,66630.0,66629.0,0.26739]
[1729026494353,0.075045,66630.0,66629.0,0.26839]
[1729026495157,0.084751,66630.0,66629.0,0.26839]
[1729026495458,0.084751,66630.0,66629.0,0.26939]
[1729026495459,0.094751,66630.0,66629.0,0.26939]
[1729026496059,0.094751,66630.0,66629.0,0.07692411]
[1729026496060,0.084751,66630.0,66629.0,0.07692411]
[1729026496255,0.075063,66614.0,66602.0,0.0896]
[1729026496455,0.075075,66603.0,66602.0,0.0896]
[1729026497663,0.075075,66603.0,66602.0,0.0986]
[1729026498061,0.075075,66603.0,66602.0,0.11061]
[1729026498259,0.075075,66603.0,66602.0,0.10161]
[1729026498764,0.076075,66603.0,66602.0,0.11261]
[1729026499348,0.075075,66603.0,66602.0,0.01201]
[1729026499650,0.075075,66603.0,66601.0,0.04744203]
[1729026499651,0.075076,66602.0,66601.0,0.00991203]
[1729026500145,0.075076,66602.0,66601.0,0.00766]
[1729026501856,0.076076,66602.0,66601.0,0.00866]
[1729026502156,0.076076,66602.0,66593.0,0.04955]
[1729026502157,0.075085,66594.0,66593.0,0.04955]
[1729026502363,0.44351454,66594.0,66593.0,0.04955]
[1729026502862,0.44351454,66594.0,66579.0,0.242971]
[1729026503160,0.075093,66587.0,66579.0,0.242971]
[1729026504456,0.075093,66587.0,66582.0,0.04955]
[1729026504658,0.075093,66587.0,66586.0,0.00825258]
[1729026505263,0.08461334,66587.0,66586.0,0.00825258]
[1729026505459,0.08561334,66587.0,66586.0,0.01725258]
[1729026507058,0.08561334,66587.0,66586.0,0.015]
[1729026507258,0.08561334,66587.0,66582.0,0.06156]
[1729026507557,0.08561334,66587.0,66579.0,0.16787]
[1729026507558,0.075101,66580.0,66579.0,0.16787]
[1729026507758,0.435901,66580.0,66579.0,0.16787]
[1729026508154,0.075101,66580.0,66579.0,0.16787]
[1729026508660,0.525701,66580.0,66579.0,0.18087]
[1729026508860,0.886501,66580.0,66579.0,0.18087]
[1729026509359,0.886501,66580.0,66579.0,0.19287]
[1729026509360,0.887501,66580.0,66579.0,0.19287]
[1729026509661,0.436901,66580.0,66579.0,0.19287]
[1729026510671,1.488501,66580.0,66579.0,0.009]
[1729026512858,1.49808908,66580.0,66579.0,0.009]
[1729026513053,1.49708908,66580.0,66567.0,0.0979]
[1729026513254,0.075114,66568.0,66567.0,0.0979]
[1729026513865,0.075117,66566.0,66565.0,0.15568]
[1729026514168,0.39831822,66566.0,66565.0,0.15568]
[1729026514952,0.39831822,66566.0,66562.0,0.01201]
[1729026515166,0.075172,66517.0,66504.0,0.08981576]
[1729026515358,0.3608,66555.0,66507.0,0.094]
[1729026515359,0.3608,66514.0,66507.0,0.094]
[1729026515865,0.075174,66516.0,66508.0,0.0496]
[1729026516168,0.00751247,66521.0,66508.0,0.0496]
[1729026516369,0.075181,66509.0,66508.0,0.0496]
[1729026517073,0.435981,66509.0,66508.0,0.0496]
[1729026517254,1.487061,66509.0,66506.0,0.22242907]
[1729026517454,0.075197,66495.0,66494.0,0.0022557]
[1729026517658,0.3608,66495.0,66489.0,0.10289]
[1729026517857,0.075203,66490.0,66489.0,0.10289]
[1729026518170,0.075203,66490.0,66489.0,0.08516218]
[1729026519267,0.075203,66490.0,66489.0,0.07716218]
[1729026519764,0.078203,66490.0,66489.0,0.07716218]
[1729026520569,0.003,66490.0,66489.0,0.07716218]
[1729026520872,0.087203,66490.0,66489.0,0.07716218]